[Event "*** Titled Tuesday Blitz"]
[Site "Chess.com"]
[Date "2019.01.01"]
[Round "10"]
[White "c63_amg"]
[Black "Jbd735"]
[Result "1-0"]
[WhiteElo "2674"]
[BlackElo "2476"]
[TimeControl "180+2"]
[EndTime "15:22:18 PST"]
[Termination "c63_amg won on time"]

1. e4 {[%clk 0:03:01.9]} 1... e5 {[%clk 0:03:00.6]} 2. Nf3 {[%clk 0:03:03.1]}
2... Nc6 {[%clk 0:03:01.5]} 3. Bc4 {[%clk 0:03:04.7]} 3... Bc5 {[%clk
0:03:01.3]} 4. c3 {[%clk 0:03:05.6]} 4... Nf6 {[%clk 0:03:00.7]} 5. d3 {[%clk
0:03:07.1]} 5... a6 {[%clk 0:03:00.6]} 6. O-O {[%clk 0:03:07.2]} 6... Ba7 {[%clk
0:03:00.7]} 7. a4 {[%clk 0:03:05.8]} 7... h6 {[%clk 0:03:00.7]} 8. Na3 {[%clk
0:03:05.2]} 8... O-O {[%clk 0:03:00.9]} 9. Nc2 {[%clk 0:03:06.8]} 9... d5 {[%clk
0:02:43.1]} 10. exd5 {[%clk 0:02:57.8]} 10... Nxd5 {[%clk 0:02:45]} 11. Re1
{[%clk 0:02:58.2]} 11... Re8 {[%clk 0:02:45]} 12. a5 {[%clk 0:02:35.4]} 12...
Bf5 {[%clk 0:02:35.7]} 13. Ne3 {[%clk 0:02:28]} 13... Nxe3 {[%clk 0:02:26.8]}
14. Bxe3 {[%clk 0:02:29.9]} 14... Bxe3 {[%clk 0:02:08.6]} 15. Rxe3 {[%clk
0:02:31.8]} 15... Qd6 {[%clk 0:02:02.9]} 16. Qb3 {[%clk 0:02:21.3]} 16... Be6
{[%clk 0:01:49]} 17. Bxe6 {[%clk 0:02:14.6]} 17... Qxe6 {[%clk 0:01:49.6]} 18.
Qa4 {[%clk 0:01:12.6]} 18... Qd5 {[%clk 0:01:39.9]} 19. h3 {[%clk 0:00:54.2]}
19... Re6 {[%clk 0:01:32.6]} 20. b4 {[%clk 0:00:38.4]} 20... e4 {[%clk
0:01:14.8]} 21. dxe4 {[%clk 0:00:34.1]} 21... Rxe4 {[%clk 0:01:14.5]} 22. Rd1
{[%clk 0:00:34.1]} 22... Qe6 {[%clk 0:01:14.3]} 23. Rxe4 {[%clk 0:00:32.2]}
23... Qxe4 {[%clk 0:01:16.2]} 24. Rd7 {[%clk 0:00:29.4]} 24... Qf4 {[%clk
0:00:48.3]} 25. Qd1 {[%clk 0:00:21]} 25... Ne5 {[%clk 0:00:31.7]} 26. Nxe5
{[%clk 0:00:16.8]} 26... Qxe5 {[%clk 0:00:33.6]} 27. Qf3 {[%clk 0:00:12.8]}
27... Rf8 {[%clk 0:00:16]} 28. g3 {[%clk 0:00:14.1]} 28... b6 {[%clk 0:00:15.4]}
29. Rd5 {[%clk 0:00:13.7]} 29... Qe1+ {[%clk 0:00:15.3]} 30. Kg2 {[%clk
0:00:15.1]} 30... Qe6 {[%clk 0:00:09.9]} 31. Qd3 {[%clk 0:00:15.8]} 31... b5
{[%clk 0:00:07.1]} 32. Rc5 {[%clk 0:00:16.1]} 32... c6 {[%clk 0:00:06.7]} 33.
Qf3 {[%clk 0:00:17.3]} 33... Rc8 {[%clk 0:00:07.4]} 34. h4 {[%clk 0:00:18.3]}
34... g6 {[%clk 0:00:07.6]} 35. Qf4 {[%clk 0:00:19]} 35... h5 {[%clk 0:00:07.8]}
36. Re5 {[%clk 0:00:20.3]} 36... Qd7 {[%clk 0:00:07.1]} 37. Qe3 {[%clk
0:00:20.4]} 37... Kh7 {[%clk 0:00:06.2]} 38. Qb6 {[%clk 0:00:18.5]} 38... Rc7
{[%clk 0:00:05.6]} 39. Qxa6 {[%clk 0:00:17.6]} 39... Kg7 {[%clk 0:00:05.6]} 40.
Qb6 {[%clk 0:00:18.8]} 40... Qd6 {[%clk 0:00:06]} 41. Qe3 {[%clk 0:00:18.6]}
41... Rd7 {[%clk 0:00:05.8]} 42. a6 {[%clk 0:00:19.5]} 42... Qd1 {[%clk
0:00:05.7]} 43. Re8 {[%clk 0:00:18.5]} 43... Qa1 {[%clk 0:00:04.4]} 44. Qe5+
{[%clk 0:00:18.9]} 44... f6 {[%clk 0:00:05.2]} 45. Re7+ {[%clk 0:00:17.1]} 45...
Rxe7 {[%clk 0:00:04.1]} 46. Qxe7+ {[%clk 0:00:19]} 46... Kg8 {[%clk 0:00:03.3]}
47. a7 {[%clk 0:00:20]} 1-0

[Event "*** Titled Tuesday Blitz"]
[Site "Chess.com"]
[Date "2019.01.01"]
[Round "10"]
[White "Morshynska"]
[Black "Kurai"]
[Result "0-1"]
[WhiteElo "2082"]
[BlackElo "2506"]
[TimeControl "180+2"]
[EndTime "15:22:23 PST"]
[Termination "Kurai won by resignation"]

1. d4 {[%clk 0:03:01.9]} 1... d5 {[%clk 0:02:52.6]} 2. c4 {[%clk 0:03:01.3]}
2... e6 {[%clk 0:02:47.6]} 3. Nf3 {[%clk 0:02:58.1]} 3... Nf6 {[%clk 0:02:46.8]}
4. g3 {[%clk 0:02:58.1]} 4... Be7 {[%clk 0:02:47.3]} 5. Bg2 {[%clk 0:02:59]}
5... O-O {[%clk 0:02:48.8]} 6. O-O {[%clk 0:02:59]} 6... dxc4 {[%clk 0:02:48.5]}
7. Qc2 {[%clk 0:02:58.8]} 7... a6 {[%clk 0:02:48.7]} 8. Qxc4 {[%clk 0:02:58.8]}
8... b5 {[%clk 0:02:47.9]} 9. Qd3 {[%clk 0:02:59.7]} 9... Bb7 {[%clk 0:02:43.9]}
10. Nc3 {[%clk 0:02:56.2]} 10... c5 {[%clk 0:02:24.9]} 11. dxc5 {[%clk
0:02:42.2]} 11... Qxd3 {[%clk 0:02:14.7]} 12. exd3 {[%clk 0:02:44.1]} 12... Bxc5
{[%clk 0:02:16]} 13. Be3 {[%clk 0:02:44.9]} 13... Nbd7 {[%clk 0:02:02.3]} 14.
Rfd1 {[%clk 0:02:19.3]} 14... Rac8 {[%clk 0:01:34.5]} 15. Rac1 {[%clk
0:01:55.8]} 15... Rfd8 {[%clk 0:01:26.5]} 16. Ne1 {[%clk 0:01:43.6]} 16... Bxg2
{[%clk 0:01:13.1]} 17. Kxg2 {[%clk 0:01:45.5]} 17... Be7 {[%clk 0:00:39.6]} 18.
Ne4 {[%clk 0:01:31.2]} 18... Nd5 {[%clk 0:00:38.5]} 19. a3 {[%clk 0:01:22.5]}
19... h6 {[%clk 0:00:35.3]} 20. h4 {[%clk 0:01:18.9]} 20... f5 {[%clk
0:00:30.6]} 21. Nd2 {[%clk 0:01:15]} 21... Bf6 {[%clk 0:00:31.7]} 22. Rb1 {[%clk
0:01:05]} 22... N7b6 {[%clk 0:00:31.6]} 23. Nb3 {[%clk 0:00:44.7]} 23... Na4
{[%clk 0:00:32.2]} 24. d4 {[%clk 0:00:43.9]} 24... g5 {[%clk 0:00:25.4]} 25.
hxg5 {[%clk 0:00:44.1]} 25... hxg5 {[%clk 0:00:27.3]} 26. Nd3 {[%clk 0:00:42.6]}
26... Rc2 {[%clk 0:00:25]} 27. Re1 {[%clk 0:00:28]} 27... Kf7 {[%clk 0:00:20.1]}
28. Rbc1 {[%clk 0:00:13.5]} 28... Rdc8 {[%clk 0:00:21]} 29. Rcd1 {[%clk
0:00:11.5]} 29... Nxb2 {[%clk 0:00:18.6]} 30. Nxb2 {[%clk 0:00:11.7]} 30... Rxb2
{[%clk 0:00:20.5]} 31. Nc5 {[%clk 0:00:12.5]} 31... f4 {[%clk 0:00:19.1]} 32.
Bc1 {[%clk 0:00:12.3]} 32... Rc2 {[%clk 0:00:15.3]} 33. Nxe6 {[%clk 0:00:11.7]}
33... Rxc1 {[%clk 0:00:15.7]} 34. Rxc1 {[%clk 0:00:13.6]} 34... Rxc1 {[%clk
0:00:16.8]} 35. Rxc1 {[%clk 0:00:11.8]} 35... Kxe6 {[%clk 0:00:17.9]} 36. Rc6+
{[%clk 0:00:13.5]} 36... Kf5 {[%clk 0:00:18.7]} 37. Rxa6 {[%clk 0:00:15.4]}
37... Bxd4 {[%clk 0:00:17.8]} 38. Ra5 {[%clk 0:00:14.3]} 38... Nc7 {[%clk
0:00:07.7]} 39. a4 {[%clk 0:00:13.1]} 39... Bb6 {[%clk 0:00:09.2]} 40. Rxb5+
{[%clk 0:00:11.5]} 40... Nxb5 {[%clk 0:00:10.3]} 41. axb5 {[%clk 0:00:13.4]}
41... Ke4 {[%clk 0:00:05.9]} 42. f3+ {[%clk 0:00:14.2]} 42... Ke3 {[%clk
0:00:06.3]} 43. gxf4 {[%clk 0:00:13.1]} 43... gxf4 {[%clk 0:00:08.2]} 0-1

[Event "*** Titled Tuesday Blitz"]
[Site "Chess.com"]
[Date "2019.01.01"]
[Round "10"]
[White "ChessMavenYeti"]
[Black "SimonKnightRivendell"]
[Result "0-1"]
[WhiteElo "2076"]
[BlackElo "1997"]
[TimeControl "180+2"]
[EndTime "15:22:24 PST"]
[Termination "SimonKnightRivendell won by checkmate"]

1. d4 {[%clk 0:02:58.9]} 1... Nf6 {[%clk 0:02:59.2]} 2. c4 {[%clk 0:02:58.7]}
2... e6 {[%clk 0:03:00.3]} 3. Nc3 {[%clk 0:02:56.8]} 3... b6 {[%clk 0:03:01.3]}
4. e4 {[%clk 0:02:56.8]} 4... d5 {[%clk 0:03:01.8]} 5. e5 {[%clk 0:02:57]} 5...
Ng8 {[%clk 0:03:01.4]} 6. cxd5 {[%clk 0:02:57.1]} 6... exd5 {[%clk 0:03:01.8]}
7. Bd3 {[%clk 0:02:55.6]} 7... Ne7 {[%clk 0:02:58.9]} 8. Nf3 {[%clk 0:02:54]}
8... h6 {[%clk 0:02:57.8]} 9. O-O {[%clk 0:02:55]} 9... Bf5 {[%clk 0:02:57.2]}
10. Qa4+ {[%clk 0:02:50.1]} 10... c6 {[%clk 0:02:57.6]} 11. Bxf5 {[%clk
0:02:46.6]} 11... Nxf5 {[%clk 0:02:58.6]} 12. Re1 {[%clk 0:02:44.5]} 12... Be7
{[%clk 0:02:56.6]} 13. e6 {[%clk 0:02:45.7]} 13... O-O {[%clk 0:02:57.5]} 14.
exf7+ {[%clk 0:02:45.5]} 14... Rxf7 {[%clk 0:02:58.4]} 15. Ne5 {[%clk
0:02:46.9]} 15... Rf6 {[%clk 0:02:54.4]} 16. Ng4 {[%clk 0:02:38.1]} 16... Rg6
{[%clk 0:02:51.2]} 17. h3 {[%clk 0:02:30]} 17... Bd6 {[%clk 0:02:45]} 18. Nxd5
{[%clk 0:02:26.8]} 18... cxd5 {[%clk 0:02:42.2]} 19. Re8+ {[%clk 0:02:25.5]}
19... Qxe8 {[%clk 0:02:41]} 20. Qxe8+ {[%clk 0:02:26.5]} 20... Kh7 {[%clk
0:02:42.1]} 21. Ne5 {[%clk 0:02:19.6]} 21... Rf6 {[%clk 0:02:33.6]} 22. Qc8
{[%clk 0:02:20]} 22... Rf8 {[%clk 0:02:32.6]} 23. Qb7 {[%clk 0:02:12.2]} 23...
Nxd4 {[%clk 0:02:24.1]} 24. Qxa8 {[%clk 0:01:57.9]} 24... Nbc6 {[%clk
0:02:14.5]} 25. Nxc6 {[%clk 0:01:21.5]} 25... Ne2+ {[%clk 0:02:05.1]} 26. Kf1
{[%clk 0:01:21]} 26... Ng3+ {[%clk 0:02:05.2]} 27. Ke1 {[%clk 0:01:20.7]} 27...
Rxa8 {[%clk 0:02:04.3]} 28. fxg3 {[%clk 0:01:21.6]} 28... Bxg3+ {[%clk
0:02:05.2]} 29. Kd1 {[%clk 0:01:18.5]} 29... Rf8 {[%clk 0:01:56.4]} 30. Nxa7
{[%clk 0:01:15.9]} 30... Rf1+ {[%clk 0:01:55.9]} 31. Ke2 {[%clk 0:01:14.2]}
31... Rf2+ {[%clk 0:01:56.3]} 32. Ke3 {[%clk 0:01:12.1]} 32... Rf1 {[%clk
0:01:54.9]} 33. Kd4 {[%clk 0:01:07.1]} 33... Rd1+ {[%clk 0:01:50.6]} 34. Kc3
{[%clk 0:01:06.4]} 34... d4+ {[%clk 0:01:43.8]} 35. Kc2 {[%clk 0:01:06.9]} 35...
Rg1 {[%clk 0:01:44.4]} 36. b3 {[%clk 0:01:06.8]} 36... Rxg2+ {[%clk 0:01:36.3]}
37. Kd3 {[%clk 0:01:08]} 37... Be5 {[%clk 0:01:31]} 38. Nc6 {[%clk 0:01:08.1]}
38... Rg3+ {[%clk 0:01:30.7]} 39. Ke4 {[%clk 0:01:09.1]} 39... Bf6 {[%clk
0:01:31.3]} 40. Bb2 {[%clk 0:00:58.2]} 40... Re3+ {[%clk 0:01:30.8]} 41. Kf4
{[%clk 0:00:57.6]} 41... Bg5+ {[%clk 0:01:29.4]} 42. Kf5 {[%clk 0:00:46]} 42...
g6+ {[%clk 0:01:25.8]} 43. Kg4 {[%clk 0:00:46.2]} 43... Re6 {[%clk 0:01:01.6]}
44. Nxd4 {[%clk 0:00:42.9]} 44... Re4+ {[%clk 0:01:02.1]} 45. Kg3 {[%clk
0:00:43]} 45... Bf6 {[%clk 0:01:02.5]} 46. Rd1 {[%clk 0:00:40]} 46... h5 {[%clk
0:01:00.5]} 47. Rd3 {[%clk 0:00:33.8]} 47... Re1 {[%clk 0:00:58.6]} 48. Bc3
{[%clk 0:00:32.6]} 48... Rg1+ {[%clk 0:00:56.3]} 49. Kf2 {[%clk 0:00:28.7]}
49... Rb1 {[%clk 0:00:54.1]} 50. Ne2 {[%clk 0:00:26]} 50... Bh4+ {[%clk
0:00:51]} 51. Kg2 {[%clk 0:00:23.9]} 51... g5 {[%clk 0:00:46.5]} 52. Rd7+ {[%clk
0:00:23.4]} 52... Kg6 {[%clk 0:00:46.9]} 53. Rd6+ {[%clk 0:00:23.5]} 53... Kf5
{[%clk 0:00:48.3]} 54. Rxb6 {[%clk 0:00:22.4]} 54... g4 {[%clk 0:00:43.8]} 55.
Rb5+ {[%clk 0:00:20.5]} 55... Ke4 {[%clk 0:00:44.8]} 56. Rxh5 {[%clk 0:00:21.1]}
56... gxh3+ {[%clk 0:00:44.4]} 57. Kxh3 {[%clk 0:00:22.5]} 57... Be7 {[%clk
0:00:42.3]} 58. Re5+ {[%clk 0:00:20]} 58... Kf3 {[%clk 0:00:43.4]} 59. Rxe7
{[%clk 0:00:21.2]} 59... Rh1# {[%clk 0:00:44.4]} 0-1

[Event "*** Titled Tuesday Blitz"]
[Site "Chess.com"]
[Date "2019.01.01"]
[Round "10"]
[White "BrianWall"]
[Black "StoreySniper"]
[Result "1-0"]
[WhiteElo "2260"]
[BlackElo "2332"]
[TimeControl "180+2"]
[EndTime "15:22:42 PST"]
[Termination "BrianWall won by resignation"]

1. e4 {[%clk 0:03:00.5]} 1... g6 {[%clk 0:03:01.9]} 2. d4 {[%clk 0:03:00.5]}
2... Bg7 {[%clk 0:03:03.8]} 3. c4 {[%clk 0:03:01.1]} 3... c5 {[%clk 0:03:05]} 4.
d5 {[%clk 0:03:01.4]} 4... e5 {[%clk 0:03:06.2]} 5. Nc3 {[%clk 0:03:01.2]} 5...
d6 {[%clk 0:03:07.7]} 6. Be2 {[%clk 0:03:01.2]} 6... Ne7 {[%clk 0:03:07.5]} 7.
Nf3 {[%clk 0:03:02.1]} 7... Nd7 {[%clk 0:03:06.9]} 8. O-O {[%clk 0:03:02.8]}
8... O-O {[%clk 0:03:06.8]} 9. Ne1 {[%clk 0:03:03.4]} 9... f5 {[%clk 0:03:07.2]}
10. exf5 {[%clk 0:03:00.3]} 10... gxf5 {[%clk 0:03:07.4]} 11. f4 {[%clk
0:03:00.6]} 11... e4 {[%clk 0:03:08.3]} 12. Nc2 {[%clk 0:03:00.4]} 12... Bxc3
{[%clk 0:03:04.2]} 13. bxc3 {[%clk 0:03:00.1]} 13... Nf6 {[%clk 0:03:05.3]} 14.
Be3 {[%clk 0:02:54.3]} 14... Kh8 {[%clk 0:03:06.1]} 15. Bf2 {[%clk 0:02:54.8]}
15... Rg8 {[%clk 0:03:06.9]} 16. Bh4 {[%clk 0:02:55.6]} 16... Ng6 {[%clk
0:02:55.5]} 17. Bg5 {[%clk 0:02:54]} 17... Qf8 {[%clk 0:02:56.4]} 18. Ne3 {[%clk
0:02:53.1]} 18... h6 {[%clk 0:02:55.9]} 19. Bxf6+ {[%clk 0:02:46]} 19... Qxf6
{[%clk 0:02:57.8]} 20. Qd2 {[%clk 0:02:44.5]} 20... Qh4 {[%clk 0:02:29.9]} 21.
Qe1 {[%clk 0:02:36.8]} 21... Qf6 {[%clk 0:02:11.1]} 22. Kh1 {[%clk 0:02:35.8]}
22... Bd7 {[%clk 0:02:10.6]} 23. Rb1 {[%clk 0:02:35.2]} 23... b6 {[%clk
0:02:11.2]} 24. g3 {[%clk 0:02:18.3]} 24... Rg7 {[%clk 0:02:11.5]} 25. Rf2
{[%clk 0:02:18.5]} 25... Rag8 {[%clk 0:02:10.9]} 26. Qd2 {[%clk 0:02:18.5]}
26... Rh7 {[%clk 0:02:02.2]} 27. Bh5 {[%clk 0:02:17.2]} 27... Be8 {[%clk
0:02:00.1]} 28. Rbf1 {[%clk 0:02:12.9]} 28... Ne7 {[%clk 0:01:58.9]} 29. Bxe8
{[%clk 0:02:12.1]} 29... Rxe8 {[%clk 0:02:00.8]} 30. a4 {[%clk 0:02:11.3]} 30...
h5 {[%clk 0:01:58.1]} 31. h4 {[%clk 0:02:10.7]} 31... Rg8 {[%clk 0:01:55.2]} 32.
Kh2 {[%clk 0:02:11]} 32... Rhg7 {[%clk 0:01:45.8]} 33. Rg2 {[%clk 0:02:09.2]}
33... Ng6 {[%clk 0:01:40.1]} 34. Qe1 {[%clk 0:02:02.8]} 34... Nf8 {[%clk
0:00:51.7]} 35. Kh3 {[%clk 0:02:01.5]} 35... Nh7 {[%clk 0:00:51.9]} 36. Rfg1
{[%clk 0:01:43]} 36... Qg6 {[%clk 0:00:52.2]} 37. Qe2 {[%clk 0:01:40.7]} 37...
Nf6 {[%clk 0:00:52.6]} 38. Kh2 {[%clk 0:01:37.6]} 38... Kh7 {[%clk 0:00:30.9]}
39. Kh3 {[%clk 0:01:35.8]} 39... Kh6 {[%clk 0:00:26.8]} 40. Kh2 {[%clk
0:01:35.1]} 40... Rf8 {[%clk 0:00:26.8]} 41. Kh3 {[%clk 0:01:35.7]} 41... Nd7
{[%clk 0:00:27.1]} 42. Kh2 {[%clk 0:01:35.7]} 42... Qf6 {[%clk 0:00:27.5]} 43.
Qd2 {[%clk 0:01:34.4]} 43... Rg6 {[%clk 0:00:23.4]} 44. Kh3 {[%clk 0:01:34]}
44... Rg7 {[%clk 0:00:18.1]} 45. Kh2 {[%clk 0:01:34.3]} 45... Qg6 {[%clk
0:00:19.6]} 46. Kh3 {[%clk 0:01:34]} 46... Nf6 {[%clk 0:00:21.1]} 47. Qe2 {[%clk
0:01:34]} 47... Rfg8 {[%clk 0:00:21.6]} 48. Kh2 {[%clk 0:01:33.8]} 48... Ng4+
{[%clk 0:00:21.4]} 49. Nxg4+ {[%clk 0:01:33.9]} 49... Qxg4 {[%clk 0:00:23]} 50.
Qxg4 {[%clk 0:01:34.1]} 50... Rxg4 {[%clk 0:00:23.6]} 51. Kh3 {[%clk 0:01:33.6]}
51... Kg6 {[%clk 0:00:24.2]} 52. Ra1 {[%clk 0:01:30]} 52... Kf6 {[%clk
0:00:25.1]} 53. a5 {[%clk 0:01:29.4]} 53... Rb8 {[%clk 0:00:18.4]} 54. Rb2
{[%clk 0:01:27.2]} 54... e3 {[%clk 0:00:13.5]} 55. Re1 {[%clk 0:01:23.1]} 55...
Re8 {[%clk 0:00:13.1]} 56. Rbe2 {[%clk 0:01:21.1]} 56... bxa5 {[%clk 0:00:10.4]}
57. Rxe3 {[%clk 0:01:21.6]} 57... Rxe3 {[%clk 0:00:11.4]} 58. Rxe3 {[%clk
0:01:22.4]} 58... Rg7 {[%clk 0:00:12.3]} 59. Re6+ {[%clk 0:01:22.8]} 59... Kf7
{[%clk 0:00:11.3]} 60. Rxd6 {[%clk 0:01:23.4]} 60... Rg6 {[%clk 0:00:12.1]} 61.
Rd7+ {[%clk 0:01:23.3]} 61... Ke8 {[%clk 0:00:13.4]} 62. Rxa7 {[%clk 0:01:24.3]}
62... Rb6 {[%clk 0:00:13.2]} 63. Rxa5 {[%clk 0:01:24.3]} 63... Rb3 {[%clk
0:00:14.2]} 64. Rxc5 {[%clk 0:01:24.8]} 64... Rxc3 {[%clk 0:00:15.6]} 65. d6
{[%clk 0:01:25.8]} 65... Kd7 {[%clk 0:00:17]} 66. Rxf5 {[%clk 0:01:23.9]} 66...
Rxc4 {[%clk 0:00:18.2]} 67. Rxh5 {[%clk 0:01:24.3]} 67... Kxd6 {[%clk
0:00:19.7]} 68. Re5 {[%clk 0:01:24.3]} 68... Rc1 {[%clk 0:00:19.9]} 69. h5
{[%clk 0:01:24.8]} 1-0

[Event "*** Titled Tuesday Blitz"]
[Site "Chess.com"]
[Date "2019.01.01"]
[Round "10"]
[White "NTBT_DHS"]
[Black "Orest_Vovk"]
[Result "0-1"]
[WhiteElo "2681"]
[BlackElo "2416"]
[TimeControl "180+2"]
[EndTime "15:22:44 PST"]
[Termination "Orest_Vovk won by resignation"]

1. d4 {[%clk 0:03:01.9]} 1... h6 {[%clk 0:03:00.5]} 2. Nc3 {[%clk 0:03:00]} 2...
g5 {[%clk 0:03:01.7]} 3. e4 {[%clk 0:02:59.7]} 3... Bg7 {[%clk 0:03:03.2]} 4. h4
{[%clk 0:02:59.7]} 4... g4 {[%clk 0:03:02.1]} 5. h5 {[%clk 0:02:50.2]} 5... c5
{[%clk 0:03:02.7]} 6. dxc5 {[%clk 0:02:47.2]} 6... Bxc3+ {[%clk 0:03:02.9]} 7.
bxc3 {[%clk 0:02:47]} 7... Qa5 {[%clk 0:03:03.5]} 8. Qd4 {[%clk 0:02:47.7]} 8...
Nf6 {[%clk 0:03:01.7]} 9. Qb4 {[%clk 0:02:12]} 9... Qc7 {[%clk 0:03:02.3]} 10.
Bd3 {[%clk 0:02:04.3]} 10... Nc6 {[%clk 0:03:03]} 11. Qa3 {[%clk 0:01:56]} 11...
Qe5 {[%clk 0:03:01.5]} 12. Ne2 {[%clk 0:01:55]} 12... Nxe4 {[%clk 0:02:49.1]}
13. Bf4 {[%clk 0:01:53.8]} 13... Qxc5 {[%clk 0:02:43]} 14. Qxc5 {[%clk
0:01:48.8]} 14... Nxc5 {[%clk 0:02:44.9]} 15. O-O-O {[%clk 0:01:50]} 15... Nxd3+
{[%clk 0:02:37.9]} 16. Rxd3 {[%clk 0:01:49.2]} 16... d6 {[%clk 0:02:39.8]} 17.
Re1 {[%clk 0:01:47.4]} 17... Be6 {[%clk 0:02:39.3]} 18. Nd4 {[%clk 0:01:44.3]}
18... Nxd4 {[%clk 0:02:40]} 19. cxd4 {[%clk 0:01:46.2]} 19... d5 {[%clk
0:02:14.6]} 20. Rc3 {[%clk 0:01:21.6]} 20... Rc8 {[%clk 0:02:09.8]} 21. Ra3
{[%clk 0:01:21.5]} 21... a6 {[%clk 0:02:08.4]} 22. Rb3 {[%clk 0:01:21.1]} 22...
b5 {[%clk 0:02:08.4]} 23. a4 {[%clk 0:01:21.7]} 23... bxa4 {[%clk 0:02:09.1]}
24. Rb6 {[%clk 0:01:18.8]} 24... O-O {[%clk 0:02:01.5]} 25. Rxa6 {[%clk
0:01:19.1]} 25... Ra8 {[%clk 0:02:00.7]} 26. Rxa8 {[%clk 0:01:16.3]} 26... Rxa8
{[%clk 0:02:01]} 27. Bxh6 {[%clk 0:01:16.5]} 27... a3 {[%clk 0:02:02.2]} 28. Bd2
{[%clk 0:01:14.7]} 28... a2 {[%clk 0:01:59.6]} 29. Kb2 {[%clk 0:01:15.8]} 29...
Bf5 {[%clk 0:01:58.6]} 30. Bb4 {[%clk 0:01:01.9]} 30... e6 {[%clk 0:01:55.2]}
31. c3 {[%clk 0:00:55.8]} 31... Bb1 {[%clk 0:01:53.9]} 32. Ka1 {[%clk
0:00:56.4]} 32... Kh7 {[%clk 0:01:50.7]} 33. Re5 {[%clk 0:00:42.8]} 33... Kh6
{[%clk 0:01:47.6]} 34. Be7 {[%clk 0:00:35.3]} 34... Bf5 {[%clk 0:01:37.9]} 35.
Re2 {[%clk 0:00:27.6]} 35... Bb1 {[%clk 0:01:33.3]} 36. f3 {[%clk 0:00:23.1]}
36... Kxh5 {[%clk 0:01:31]} 37. Re5+ {[%clk 0:00:18.9]} 37... Bf5 {[%clk
0:01:31.6]} 38. Re1 {[%clk 0:00:15.9]} 38... Kg6 {[%clk 0:01:27]} 39. Rh1 {[%clk
0:00:15.8]} 39... gxf3 {[%clk 0:01:20.9]} 40. gxf3 {[%clk 0:00:17.7]} 40... Bd3
{[%clk 0:01:17.9]} 41. Bd6 {[%clk 0:00:15.6]} 41... f6 {[%clk 0:01:12.6]} 42.
Rg1+ {[%clk 0:00:14.7]} 42... Kf5 {[%clk 0:01:13.8]} 43. Rg4 {[%clk 0:00:13.1]}
43... Bc4 {[%clk 0:01:12.2]} 44. Rf4+ {[%clk 0:00:14.1]} 44... Kg6 {[%clk
0:01:13.3]} 45. Rg4+ {[%clk 0:00:16]} 45... Kf7 {[%clk 0:01:14.2]} 46. Rg1
{[%clk 0:00:12.3]} 46... Rh8 {[%clk 0:01:11.5]} 47. Re1 {[%clk 0:00:10.1]} 47...
Rh3 {[%clk 0:01:10.5]} 48. Bb4 {[%clk 0:00:04.8]} 48... Rxf3 {[%clk 0:01:11.1]}
49. Kb2 {[%clk 0:00:05.8]} 49... Rf2+ {[%clk 0:01:10.4]} 50. Ka1 {[%clk
0:00:06.7]} 50... f5 {[%clk 0:01:09.1]} 51. Bd6 {[%clk 0:00:07.7]} 51... f4
{[%clk 0:01:09.8]} 52. Be5 {[%clk 0:00:04.3]} 52... f3 {[%clk 0:01:09.7]} 53.
Bg3 {[%clk 0:00:05.6]} 53... Re2 {[%clk 0:01:07.8]} 54. Rg1 {[%clk 0:00:05]}
54... Rg2 {[%clk 0:01:08.2]} 55. Rxg2 {[%clk 0:00:04.8]} 55... fxg2 {[%clk
0:01:09.4]} 56. Bf2 {[%clk 0:00:06.3]} 56... Kg6 {[%clk 0:01:10.7]} 57. Bg1
{[%clk 0:00:07.8]} 57... Kf5 {[%clk 0:01:11.9]} 58. Kb2 {[%clk 0:00:09.7]} 58...
Ke4 {[%clk 0:01:13.2]} 59. Bh2 {[%clk 0:00:09.2]} 59... Kf3 {[%clk 0:01:13.8]}
60. Bg1 {[%clk 0:00:10.5]} 60... Ke2 {[%clk 0:01:15.1]} 61. Bh2 {[%clk 0:00:12]}
61... Kf1 {[%clk 0:01:16.3]} 0-1